[Event "9th RTU Rapid 2019"]
[Site "Riga"]
[Date "2019.08.04"]
[Round "1.11"]
[White "Vingris, Mikelis"]
[Black "Gagare, Shardul"]
[Result "0-1"]
[WhiteElo "1438"]
[BlackElo "2430"]
[PlyCount "122"]
[EventDate "2019.08.05"]
[EventType "swiss"]
[EventCountry "LAT"]
[TimeControl "5400+30"]
[WhiteClock "0:00:17"]
[BlackClock "0:00:10"]

1. d4 {[%emt 1:15:25]} Nf6 {[%emt 1:15:25]} 2. c4 {[%emt 0:00:30]} e6 {[%emt 0:00:30]} 3. Nc3 {[%emt 0:00:30]} Bb4 {[%emt 0:00:30]} 4. Nf3 {[%emt 0:00:30]} O-O {[%emt 0:00:30]} 5. Bg5 {[%emt 0:00:30]} h6 {[%emt 0:00:30]} 6. Bxf6 {[%emt 0:00:30]} Qxf6 {[%emt 0:00:30]} 7. e3 {[%emt 0:00:30]} c5 {[%emt 0:00:31]} 8. Bd3 {[%emt 0:00:33]} Nc6 {[%emt 0:00:30]} 9. O-O {[%emt 0:00:39]} cxd4 {[%emt 0:02:28]} 10. exd4 {[%emt 0:00:31]} Bxc3 {[%emt 0:00:31]} 11. bxc3 {[%emt 0:00:30]} d5 {[%emt 0:02:09]} 12. Re1 {[%emt 0:00:58]} dxc4 {[%emt 0:01:56]} 13. Bxc4 {[%emt 0:00:30]} Rd8 {[%emt 0:00:30]} 14. Qe2 {[%emt 0:01:50]} b6 {[%emt 0:00:38]} 15. Ne5 {[%emt 0:02:37]} Nxe5 {[%emt 0:01:19]} 16. Qxe5 {[%emt 0:00:31]} Qxe5 {[%emt 0:00:36]} 17. Rxe5 {[%emt 0:00:33]} Bb7 {[%emt 0:00:30]} 18. Bb3 {[%emt 0:01:20]} Rac8 {[%emt 0:00:30]} 19. Re3 {[%emt 0:00:42]} Bd5 {[%emt 0:01:55]} 20. Rc1 {[%emt 0:01:08]} Bxb3 {[%emt 0:00:37]} 21. axb3 {[%emt 0:00:30]} Rxd4 {[%emt 0:00:30]} 22. Ra1 {[%emt 0:00:57]} Rd2 {[%emt 0:00:32]} 23. g3 {[%emt 0:00:37]} a5 {[%emt 0:01:36]} 24. Kf1 {[%emt 0:01:51]} Rcd8 {[%emt 0:02:11]} 25. Ra4 {[%emt 0:03:11]} Rb2 {[%emt 0:00:49]} 26. b4 {[%emt 0:00:33]} axb4 {[%emt 0:01:03]} 27. Rxb4 {[%emt 0:00:44]} Rd1+ {[%emt 0:00:45]} 28. Kg2 {[%emt 0:00:49]} Rxb4 {[%emt 0:00:30]} 29. cxb4 {[%emt 0:00:30]} Rd4 {[%emt 0:00:30]} 30. Rb3 {[%emt 0:00:32]} b5 {[%emt 0:00:30]} 31. Kf3 {[%emt 0:00:30]} f5 {[%emt 0:00:43]} 32. Ke3 {[%emt 0:01:21]} Rc4 {[%emt 0:00:32]} 33. Kf3 {[%emt 0:00:53]} Kf7 {[%emt 0:00:30]} 34. Ke3 {[%emt 0:00:33]} g5 {[%emt 0:00:36]} 35. h3 {[%emt 0:00:44]} h5 {[%emt 0:00:35]} 36. Kf3 {[%emt 0:00:51]} h4 {[%emt 0:00:30]} 37. Kg2 {[%emt 0:00:45]} Kf6 {[%emt 0:00:36]} 38. Kf3 {[%emt 0:00:36]} hxg3 {[%emt 0:01:01]} 39. Kxg3 {[%emt 0:00:47]} Ke5 {[%emt 0:00:30]} 40. Kf3 {[%emt 0:00:38]} Kd4 {[%emt 0:01:02]} 41. Kg2 {[%emt 0:00:30]} Kd5 {[%emt 0:00:59]} 42. Rb2 {[%emt 0:00:52]} Rd4 {[%emt 0:00:33]} 43. Rb1 {[%emt 0:00:33]} Kc4 {[%emt 0:00:59]} 44. Re1 {[%emt 0:00:30]} Re4 {[%emt 0:00:30]} 45. Rb1 {[%emt 0:00:31]} Kc3 {[%emt 0:00:30]} 46. f3 {[%emt 0:00:34]} Re2+ {[%emt 0:00:31]} 47. Kg3 {[%emt 0:00:51]} f4+ {[%emt 0:00:31]} 48. Kg4 {[%emt 0:00:30]} Rg2+ {[%emt 0:00:30]} 49. Kh5 {[%emt 0:00:30]} e5 {[%emt 0:00:44]} 50. Re1 {[%emt 0:00:38]} Kd4 {[%emt 0:00:31]} 51. Re4+ {[%emt 0:00:30]} Kd5 {[%emt 0:00:30]} 52. Re1 {[%emt 0:00:30]} Rg3 {[%emt 0:00:30]} 53. Rf1 {[%emt 0:00:34]} Kc4 {[%emt 0:00:46]} 54. Re1 {[%emt 0:00:30]} Kd4 {[%emt 0:00:30]} 55. Rd1+ {[%emt 0:00:35]} Kc4 {[%emt 0:00:30]} 56. Re1 {[%emt 0:00:30]} Rxh3+ {[%emt 0:00:33]} 57. Kxg5 {[%emt 0:00:30]} Rxf3 {[%emt 0:00:30]} 58. Rxe5 {[%emt 0:00:30]} Kxb4 {[%emt 0:00:30]} 59. Kg4 {[%emt 0:00:30]} Rf2 {[%emt 0:00:30]} 60. Re8 {[%emt 0:00:33]} Kb3 {[%emt 0:00:30]} 61. Rb8 {[%emt 0:00:30]} b4 {[%emt 0:00:30]} 0-1

[Event "9th RTU Rapid 2019"]
[Site "Riga"]
[Date "2019.08.04"]
[Round "1.12"]
[White "Kopylov, Michael"]
[Black "Rychagov, Nikita"]
[Result "1-0"]
[WhiteElo "2414"]
[BlackElo "1596"]
[PlyCount "49"]
[EventDate "2019.08.05"]
[EventType "swiss"]
[EventCountry "LAT"]
[TimeControl "5400+30"]
[WhiteClock "0:10:21"]
[BlackClock "0:09:16"]

1. d4 {[%emt 1:15:21]} d5 {[%emt 1:15:20]} 2. c4 {[%emt 0:00:27]} e6 {[%emt 0:00:26]} 3. Nf3 {[%emt 0:00:27]} Nf6 {[%emt 0:00:25]} 4. g3 {[%emt 0:00:27]} dxc4 {[%emt 0:00:26]} 5. Bg2 {[%emt 0:00:27]} c5 {[%emt 0:00:26]} 6. O-O {[%emt 0:00:33]} Nc6 {[%emt 0:00:26]} 7. Ne5 {[%emt 0:00:27]} Qc7 {[%emt 0:00:40]} 8. Nxc6 {[%emt 0:01:00]} bxc6 {[%emt 0:00:27]} 9. Bf4 {[%emt 0:01:47]} Bd6 {[%emt 0:00:26]} 10. Bxd6 {[%emt 0:00:41]} Qxd6 {[%emt 0:00:26]} 11. dxc5 {[%emt 0:00:27]} Qxc5 {[%emt 0:00:28]} 12. Qa4 {[%emt 0:00:40]} O-O {[%emt 0:01:09]} 13. Na3 {[%emt 0:00:35]} Rb8 {[%emt 0:00:56]} 14. Qxc4 {[%emt 0:02:01]} Qxc4 {[%emt 0:00:29]} 15. Nxc4 {[%emt 0:00:27]} Ba6 {[%emt 0:00:34]} 16. b3 {[%emt 0:00:26]} Nd5 {[%emt 0:01:18]} 17. Rfc1 {[%emt 0:01:20]} Rfc8 {[%emt 0:01:02]} 18. Ne5 {[%emt 0:01:14]} Bxe2 {[%emt 0:01:29]} 19. Nxc6 {[%emt 0:00:30]} Kf8 {[%emt 0:01:35]} 20. Nxb8 {[%emt 0:00:31]} Rxb8 {[%emt 0:00:25]} 21. Rc5 {[%emt 0:01:12]} Rb5 {[%emt 0:01:09]} 22. Rxb5 {[%emt 0:00:41]} Bxb5 {[%emt 0:00:26]} 23. Rc1 {[%emt 0:00:30]} Ke7 {[%emt 0:00:45]} 24. Bxd5 {[%emt 0:00:37]} exd5 {[%emt 0:00:26]} 25. Rc5 {[%emt 0:00:26]} 1-0

[Event "9th RTU Rapid 2019"]
[Site "Riga"]
[Date "2019.08.04"]
[Round "1.13"]
[White "Lelis, Janis"]
[Black "Korchmar, Vasiliy"]
[Result "0-1"]
[WhiteElo "1882"]
[BlackElo "2413"]
[PlyCount "77"]
[EventDate "2019.08.05"]
[EventType "swiss"]
[EventCountry "LAT"]
[TimeControl "5400+30"]
[WhiteClock "0:05:58"]
[BlackClock "0:06:32"]

1. d4 {[%emt 1:15:23]} Nf6 {[%emt 1:15:21]} 2. c4 {[%emt 0:00:27]} g6 {[%emt 0:00:27]} 3. Nc3 {[%emt 0:00:27]} d5 {[%emt 0:00:26]} 4. Bf4 {[%emt 0:00:26]} Bg7 {[%emt 0:00:27]} 5. e3 {[%emt 0:00:26]} O-O {[%emt 0:00:29]} 6. Nf3 {[%emt 0:00:26]} c5 {[%emt 0:00:28]} 7. cxd5 {[%emt 0:00:33]} Nxd5 {[%emt 0:01:39]} 8. Nxd5 {[%emt 0:00:55]} Qxd5 {[%emt 0:00:27]} 9. Qb3 {[%emt 0:00:25]} Qxb3 {[%emt 0:00:51]} 10. axb3 {[%emt 0:00:26]} cxd4 {[%emt 0:00:32]} 11. exd4 {[%emt 0:00:28]} Nc6 {[%emt 0:00:28]} 12. Be3 {[%emt 0:00:27]} Nb4 {[%emt 0:00:55]} 13. Ra4 {[%emt 0:01:05]} Nc2+ {[%emt 0:01:26]} 14. Kd2 {[%emt 0:00:26]} Nxe3 {[%emt 0:00:27]} 15. fxe3 {[%emt 0:00:26]} Bd7 {[%emt 0:00:28]} 16. Rc4 {[%emt 0:01:29]} Bc6 {[%emt 0:01:00]} 17. Be2 {[%emt 0:00:38]} Rfd8 {[%emt 0:00:27]} 18. Rc5 {[%emt 0:01:24]} e6 {[%emt 0:00:41]} 19. Rhc1 {[%emt 0:00:26]} Bf8 {[%emt 0:00:27]} 20. R5c2 {[%emt 0:00:27]} Bb4+ {[%emt 0:01:01]} 21. Kd1 {[%emt 0:00:28]} a5 {[%emt 0:00:34]} 22. Bd3 {[%emt 0:00:43]} Bd5 {[%emt 0:01:51]} 23. Bc4 {[%emt 0:00:28]} Be4 {[%emt 0:00:26]} 24. Rf2 {[%emt 0:00:46]} Bc6 {[%emt 0:02:24]} 25. Ne5 {[%emt 0:01:07]} Be8 {[%emt 0:00:26]} 26. Rfc2 {[%emt 0:01:48]} Bd6 {[%emt 0:00:38]} 27. Nf3 {[%emt 0:00:31]} Bc6 {[%emt 0:00:34]} 28. Ke2 {[%emt 0:00:26]} Kg7 {[%emt 0:00:40]} 29. h3 {[%emt 0:00:28]} Bb4 {[%emt 0:01:23]} 30. Bd3 {[%emt 0:00:42]} h6 {[%emt 0:00:56]} 31. g3 {[%emt 0:01:02]} Bd6 {[%emt 0:00:35]} 32. g4 {[%emt 0:00:26]} a4 {[%emt 0:00:37]} 33. bxa4 {[%emt 0:02:39]} Rxa4 {[%emt 0:00:28]} 34. e4 {[%emt 0:01:41]} Bf4 {[%emt 0:00:54]} 35. Rb1 {[%emt 0:00:30]} Rda8 {[%emt 0:00:32]} 36. b3 {[%emt 0:00:40]} Ra2 {[%emt 0:00:37]} 37. Rcb2 {[%emt 0:00:27]} Rxb2+ {[%emt 0:00:32]} 38. Rxb2 {[%emt 0:00:26]} Ra1 {[%emt 0:00:28]} 39. Ne5 {[%emt 0:01:35]} 0-1

[Event "9th RTU Rapid 2019"]
[Site "Riga"]
[Date "2019.08.04"]
[Round "1.14"]
[White "Galchenko, Matvey"]
[Black "Vambute, Dana"]
[Result "1-0"]
[WhiteElo "2360"]
[BlackElo "1871"]
[PlyCount "67"]
[EventDate "2019.08.05"]
[EventType "swiss"]
[EventCountry "LAT"]
[TimeControl "5400+30"]
[WhiteClock "0:00:15"]
[BlackClock "0:04:14"]

1. e4 {[%emt 1:15:21]} c5 {[%emt 1:15:21]} 2. a3 {[%emt 0:00:25]} e6 {[%emt 0:00:27]} 3. b4 {[%emt 0:00:26]} cxb4 {[%emt 0:00:28]} 4. axb4 {[%emt 0:00:26]} Bxb4 {[%emt 0:00:46]} 5. Bb2 {[%emt 0:00:27]} Nf6 {[%emt 0:00:31]} 6. e5 {[%emt 0:00:26]} Nd5 {[%emt 0:00:44]} 7. c4 {[%emt 0:00:26]} Ne7 {[%emt 0:00:31]} 8. Nc3 {[%emt 0:01:17]} Nbc6 {[%emt 0:00:45]} 9. Ne4 {[%emt 0:00:27]} O-O {[%emt 0:01:30]} 10. Qh5 {[%emt 0:02:04]} Ng6 {[%emt 0:02:06]} 11. Bd3 {[%emt 0:00:48]} Qh4 {[%emt 0:02:04]} 12. Qxh4 {[%emt 0:01:27]} Nxh4 {[%emt 0:00:27]} 13. g3 {[%emt 0:00:27]} Nf5 {[%emt 0:00:51]} 14. c5 {[%emt 0:01:00]} Ba5 {[%emt 0:01:27]} 15. g4 {[%emt 0:01:22]} Nfe7 {[%emt 0:00:32]} 16. f4 {[%emt 0:00:45]} Nd5 {[%emt 0:01:09]} 17. Ne2 {[%emt 0:00:34]} b6 {[%emt 0:01:17]} 18. h4 {[%emt 0:03:40]} Ncb4 {[%emt 0:02:09]} 19. Bb1 {[%emt 0:02:07]} Ba6 {[%emt 0:00:41]} 20. f5 {[%emt 0:00:39]} Nd3+ {[%emt 0:01:31]} 21. Bxd3 {[%emt 0:00:26]} Bxd3 {[%emt 0:00:27]} 22. Nf2 {[%emt 0:00:45]} Nb4 {[%emt 0:00:42]} 23. Rc1 {[%emt 0:01:19]} exf5 {[%emt 0:01:22]} 24. Rh3 {[%emt 0:00:31]} fxg4 {[%emt 0:01:07]} 25. Rxd3 {[%emt 0:00:37]} Nxd3+ {[%emt 0:00:27]} 26. Nxd3 {[%emt 0:00:26]} Rac8 {[%emt 0:00:41]} 27. Rc4 {[%emt 0:00:38]} h5 {[%emt 0:00:31]} 28. Nef4 {[%emt 0:00:29]} bxc5 {[%emt 0:01:50]} 29. Nxh5 {[%emt 0:00:30]} Rfe8 {[%emt 0:00:36]} 30. Rxg4 {[%emt 0:00:30]} Kf8 {[%emt 0:01:07]} 31. Kd1 {[%emt 0:00:34]} Bb6 {[%emt 0:00:46]} 32. Nxg7 {[%emt 0:00:30]} Red8 {[%emt 0:00:49]} 33. Nf5 {[%emt 0:00:29]} c4 {[%emt 0:00:33]} 34. Ba3+ {[%emt 0:00:28]} 1-0

[Event "9th RTU Rapid 2019"]
[Site "Riga"]
[Date "2019.08.04"]
[Round "1.15"]
[White "Rizihs, Valerijs"]
[Black "Suleymenov, Alisher"]
[Result "0-1"]
[WhiteElo "1757"]
[BlackElo "2348"]
[PlyCount "53"]
[EventDate "2019.08.05"]
[EventType "swiss"]
[EventCountry "LAT"]
[TimeControl "5400+30"]
[WhiteClock "0:02:58"]
[BlackClock "0:00:06"]

1. d4 {[%emt 1:15:23]} Nf6 {[%emt 1:15:46]} 2. Nc3 {[%emt 0:00:32]} d5 {[%emt 0:00:27]} 3. Bf4 {[%emt 0:00:29]} e6 {[%emt 0:01:18]} 4. e3 {[%emt 0:01:04]} Bb4 {[%emt 0:03:50]} 5. a3 {[%emt 0:00:59]} Bxc3+ {[%emt 0:00:48]} 6. bxc3 {[%emt 0:00:27]} O-O {[%emt 0:01:10]} 7. Bd3 {[%emt 0:01:41]} c5 {[%emt 0:03:04]} 8. dxc5 {[%emt 0:00:27]} Qa5 {[%emt 0:00:40]} 9. Be5 {[%emt 0:00:58]} Nbd7 {[%emt 0:00:44]} 10. Bxf6 {[%emt 0:01:59]} Nxf6 {[%emt 0:00:27]} 11. Ne2 {[%emt 0:00:36]} e5 {[%emt 0:01:12]} 12. f3 {[%emt 0:02:58]} Qxc5 {[%emt 0:00:35]} 13. Kf2 {[%emt 0:00:36]} e4 {[%emt 0:00:32]} 14. h4 {[%emt 0:04:18]} Re8 {[%emt 0:01:00]} 15. Nd4 {[%emt 0:00:46]} exd3 {[%emt 0:00:31]} 16. Qxd3 {[%emt 0:00:27]} Bd7 {[%emt 0:00:59]} 17. g4 {[%emt 0:00:30]} Rac8 {[%emt 0:00:34]} 18. Rab1 {[%emt 0:01:18]} b6 {[%emt 0:01:08]} 19. h5 {[%emt 0:01:52]} h6 {[%emt 0:00:39]} 20. g5 {[%emt 0:00:39]} hxg5 {[%emt 0:00:31]} 21. Rbg1 {[%emt 0:00:36]} Qxc3 {[%emt 0:00:36]} 22. Qe2 {[%emt 0:00:35]} g4 {[%emt 0:00:44]} 23. h6 {[%emt 0:01:38]} g6 {[%emt 0:00:32]} 24. f4 {[%emt 0:01:00]} Kh7 {[%emt 0:00:53]} 25. Rh4 {[%emt 0:00:33]} Re7 {[%emt 0:00:54]} 26. Rg3 {[%emt 0:00:33]} Ne4+ {[%emt 0:00:28]} 27. Kg2 {[%emt 0:00:08]} 0-1

[Event "9th RTU Rapid 2019"]
[Site "Riga"]
[Date "2019.08.04"]
[Round "1.16"]
[White "Maltsevskaya, Aleksandra"]
[Black "Aizstrauts, Arturs"]
[Result "1-0"]
[WhiteElo "2321"]
[BlackElo "1847"]
[PlyCount "43"]
[EventDate "2019.08.05"]
[EventType "swiss"]
[EventCountry "LAT"]
[TimeControl "5400+30"]
[WhiteClock "0:05:45"]
[BlackClock "0:08:29"]

1. Nf3 {[%emt 1:15:26]} Nf6 {[%emt 1:15:22]} 2. g3 {[%emt 0:00:26]} b5 {[%emt 0:00:26]} 3. Bg2 {[%emt 0:00:28]} Bb7 {[%emt 0:00:26]} 4. d3 {[%emt 0:00:27]} d6 {[%emt 0:00:32]} 5. O-O {[%emt 0:00:28]} Nbd7 {[%emt 0:00:26]} 6. e4 {[%emt 0:00:26]} e6 {[%emt 0:00:27]} 7. a4 {[%emt 0:01:53]} b4 {[%emt 0:00:27]} 8. Nbd2 {[%emt 0:00:28]} Be7 {[%emt 0:00:31]} 9. a5 {[%emt 0:00:47]} c5 {[%emt 0:00:31]} 10. Nc4 {[%emt 0:00:43]} d5 {[%emt 0:01:32]} 11. exd5 {[%emt 0:01:13]} Bxd5 {[%emt 0:00:33]} 12. Bf4 {[%emt 0:00:58]} O-O {[%emt 0:00:38]} 13. Re1 {[%emt 0:00:27]} Nh5 {[%emt 0:01:40]} 14. Bd2 {[%emt 0:01:23]} Qc7 {[%emt 0:01:20]} 15. Nfe5 {[%emt 0:00:53]} Bxg2 {[%emt 0:02:11]} 16. Kxg2 {[%emt 0:00:29]} Nhf6 {[%emt 0:00:42]} 17. Qf3 {[%emt 0:01:19]} Nxe5 {[%emt 0:02:15]} 18. Rxe5 {[%emt 0:01:22]} Rad8 {[%emt 0:01:40]} 19. Bf4 {[%emt 0:01:04]} Bd6 {[%emt 0:01:32]} 20. Nxd6 {[%emt 0:00:34]} Qxd6 {[%emt 0:00:27]} 21. Rg5 {[%emt 0:00:44]} Qd4 {[%emt 0:01:07]} 22. Be5 {[%emt 0:00:33]} 1-0

[Event "9th RTU Rapid 2019"]
[Site "Riga"]
[Date "2019.08.04"]
[Round "1.18"]
[White "Miedema, David"]
[Black "Machevskis, Edmunds"]
[Result "1-0"]
[WhiteElo "2313"]
[BlackElo "1791"]
[PlyCount "79"]
[EventDate "2019.08.05"]
[EventType "swiss"]
[EventCountry "LAT"]
[TimeControl "5400+30"]
[WhiteClock "0:02:38"]
[BlackClock "0:08:10"]

1. e4 {[%emt 1:15:28]} d5 {[%emt 1:15:22]} 2. exd5 {[%emt 0:00:27]} Qxd5 {[%emt 0:00:27]} 3. Nc3 {[%emt 0:00:26]} Qe5+ {[%emt 0:00:27]} 4. Be2 {[%emt 0:00:32]} c6 {[%emt 0:00:25]} 5. Nf3 {[%emt 0:00:37]} Qc7 {[%emt 0:00:27]} 6. d4 {[%emt 0:00:27]} e6 {[%emt 0:00:36]} 7. Bg5 {[%emt 0:00:49]} Nd7 {[%emt 0:00:28]} 8. Qd2 {[%emt 0:00:30]} Ngf6 {[%emt 0:00:29]} 9. Bf4 {[%emt 0:00:27]} Bd6 {[%emt 0:00:27]} 10. Bxd6 {[%emt 0:00:27]} Qxd6 {[%emt 0:00:27]} 11. O-O-O {[%emt 0:00:35]} O-O {[%emt 0:00:36]} 12. Rhg1 {[%emt 0:00:32]} b5 {[%emt 0:00:28]} 13. g4 {[%emt 0:00:35]} b4 {[%emt 0:00:32]} 14. Na4 {[%emt 0:00:28]} Bb7 {[%emt 0:00:39]} 15. g5 {[%emt 0:00:57]} Nd5 {[%emt 0:01:12]} 16. h4 {[%emt 0:01:58]} Qf4 {[%emt 0:00:28]} 17. Nc5 {[%emt 0:00:40]} Qxd2+ {[%emt 0:01:19]} 18. Rxd2 {[%emt 0:00:37]} Nxc5 {[%emt 0:00:31]} 19. dxc5 {[%emt 0:00:27]} a5 {[%emt 0:00:26]} 20. Ne5 {[%emt 0:01:02]} f6 {[%emt 0:01:37]} 21. gxf6 {[%emt 0:00:32]} Rxf6 {[%emt 0:00:29]} 22. Bg4 {[%emt 0:00:31]} Rd8 {[%emt 0:00:55]} 23. Nc4 {[%emt 0:00:55]} a4 {[%emt 0:00:40]} 24. Re1 {[%emt 0:00:29]} Ba6 {[%emt 0:00:49]} 25. Nb6 {[%emt 0:00:50]} Kf7 {[%emt 0:01:32]} 26. Re4 {[%emt 0:00:34]} Bf1 {[%emt 0:01:31]} 27. Nxd5 {[%emt 0:00:32]} exd5 {[%emt 0:00:30]} 28. Rxb4 {[%emt 0:00:29]} Bb5 {[%emt 0:00:35]} 29. b3 {[%emt 0:00:30]} Ra8 {[%emt 0:00:51]} 30. Kb2 {[%emt 0:02:43]} g6 {[%emt 0:01:58]} 31. h5 {[%emt 0:00:42]} g5 {[%emt 0:00:35]} 32. f3 {[%emt 0:00:38]} Rf4 {[%emt 0:01:38]} 33. Rxb5 {[%emt 0:00:40]} cxb5 {[%emt 0:01:16]} 34. Rxd5 {[%emt 0:00:44]} a3+ {[%emt 0:01:01]} 35. Kc3 {[%emt 0:00:26]} Re8 {[%emt 0:00:49]} 36. c6 {[%emt 0:00:39]} b4+ {[%emt 0:02:36]} 37. Kd3 {[%emt 0:00:29]} Rxg4 {[%emt 0:00:28]} 38. fxg4 {[%emt 0:00:26]} Ke6 {[%emt 0:00:26]} 39. Kc4 {[%emt 0:00:33]} Rc8 {[%emt 0:00:50]} 40. Kc5 {[%emt 0:00:27]} 1-0

[Event "9th RTU Rapid 2019"]
[Site "Riga"]
[Date "2019.08.04"]
[Round "1.19"]
[White "Afanasjevs, Aleksandrs"]
[Black "Kiik, Kalle"]
[Result "0-1"]
[WhiteElo "1589"]
[BlackElo "2308"]
[PlyCount "82"]
[EventDate "2019.08.05"]
[EventType "swiss"]
[EventCountry "LAT"]
[TimeControl "5400+30"]
[WhiteClock "0:06:05"]
[BlackClock "0:01:08"]

1. d4 {[%emt 1:15:22]} d5 {[%emt 1:15:23]} 2. e3 {[%emt 0:00:28]} c5 {[%emt 0:00:28]} 3. Nf3 {[%emt 0:00:28]} Nc6 {[%emt 0:00:30]} 4. Be2 {[%emt 0:00:37]} Nf6 {[%emt 0:00:29]} 5. dxc5 {[%emt 0:00:41]} e6 {[%emt 0:00:29]} 6. c4 {[%emt 0:00:31]} Bxc5 {[%emt 0:00:28]} 7. O-O {[%emt 0:00:29]} O-O {[%emt 0:00:31]} 8. b3 {[%emt 0:00:33]} d4 {[%emt 0:00:36]} 9. exd4 {[%emt 0:00:35]} Nxd4 {[%emt 0:00:27]} 10. Bb2 {[%emt 0:00:29]} Nxe2+ {[%emt 0:00:33]} 11. Qxe2 {[%emt 0:00:29]} b6 {[%emt 0:00:35]} 12. Nbd2 {[%emt 0:00:44]} Bb7 {[%emt 0:00:27]} 13. a3 {[%emt 0:00:34]} a5 {[%emt 0:00:32]} 14. Rfd1 {[%emt 0:00:33]} Qe7 {[%emt 0:00:39]} 15. a4 {[%emt 0:00:56]} Rad8 {[%emt 0:00:37]} 16. Nf1 {[%emt 0:00:30]} Rxd1 {[%emt 0:00:38]} 17. Rxd1 {[%emt 0:00:28]} Rd8 {[%emt 0:00:29]} 18. Rxd8+ {[%emt 0:00:31]} Qxd8 {[%emt 0:00:27]} 19. Qd2 {[%emt 0:00:28]} Qxd2 {[%emt 0:00:29]} 20. N1xd2 {[%emt 0:00:28]} Ne4 {[%emt 0:01:41]} 21. Nxe4 {[%emt 0:01:22]} Bxe4 {[%emt 0:00:28]} 22. Bc3 {[%emt 0:02:47]} f6 {[%emt 0:01:00]} 23. Ne1 {[%emt 0:00:39]} Kf7 {[%emt 0:01:30]} 24. Kf1 {[%emt 0:00:29]} Bb1 {[%emt 0:02:13]} 25. Nf3 {[%emt 0:00:44]} Bd3+ {[%emt 0:00:36]} 26. Ke1 {[%emt 0:00:30]} Ke7 {[%emt 0:00:47]} 27. Nd2 {[%emt 0:02:25]} e5 {[%emt 0:00:50]} 28. f3 {[%emt 0:01:19]} Bc2 {[%emt 0:01:02]} 29. h3 {[%emt 0:01:00]} Ke6 {[%emt 0:01:20]} 30. g4 {[%emt 0:00:40]} g6 {[%emt 0:00:54]} 31. Ke2 {[%emt 0:01:37]} f5 {[%emt 0:00:34]} 32. Ke1 {[%emt 0:01:26]} h5 {[%emt 0:00:28]} 33. gxh5 {[%emt 0:01:25]} gxh5 {[%emt 0:00:27]} 34. Ke2 {[%emt 0:00:37]} e4 {[%emt 0:00:49]} 35. fxe4 {[%emt 0:01:02]} fxe4 {[%emt 0:00:27]} 36. Bg7 {[%emt 0:01:23]} Kf5 {[%emt 0:00:31]} 37. h4 {[%emt 0:00:48]} Bd3+ {[%emt 0:01:06]} 38. Ke1 {[%emt 0:01:10]} e3 {[%emt 0:00:40]} 39. Nf3 {[%emt 0:00:52]} Bb4+ {[%emt 0:00:41]} 40. Kd1 {[%emt 0:00:39]} e2+ {[%emt 0:00:49]} 41. Kc1 {[%emt 0:00:34]} Kf4 {[%emt 0:00:45]} 0-1

[Event "9th RTU Rapid 2019"]
[Site "Riga"]
[Date "2019.08.04"]
[Round "1.20"]
[White "Lavendelis, Egons"]
[Black "Piksis, Davids"]
[Result "1-0"]
[WhiteElo "2292"]
[BlackElo "1675"]
[PlyCount "53"]
[EventDate "2019.08.05"]
[EventType "swiss"]
[EventCountry "LAT"]
[TimeControl "5400+30"]
[WhiteClock "0:00:15"]
[BlackClock "0:05:26"]

1. e4 {[%emt 1:15:21]} c5 {[%emt 1:15:22]} 2. Nf3 {[%emt 0:00:27]} e6 {[%emt 0:00:27]} 3. c3 {[%emt 0:00:29]} Nc6 {[%emt 0:00:31]} 4. Bb5 {[%emt 0:00:37]} g6 {[%emt 0:00:59]} 5. O-O {[%emt 0:00:30]} Bg7 {[%emt 0:00:31]} 6. d4 {[%emt 0:00:54]} cxd4 {[%emt 0:01:01]} 7. cxd4 {[%emt 0:00:27]} d5 {[%emt 0:00:52]} 8. exd5 {[%emt 0:00:31]} exd5 {[%emt 0:02:50]} 9. Bg5 {[%emt 0:01:46]} Qd6 {[%emt 0:01:37]} 10. Qc2 {[%emt 0:03:20]} Bf5 {[%emt 0:02:03]} 11. Re1+ {[%emt 0:00:49]} Kf8 {[%emt 0:00:30]} 12. Qd2 {[%emt 0:02:09]} Qb4 {[%emt 0:02:24]} 13. Qxb4+ {[%emt 0:02:26]} Nxb4 {[%emt 0:00:27]} 14. Bf4 {[%emt 0:00:26]} Bf6 {[%emt 0:04:07]} 15. Bd6+ {[%emt 0:00:34]} Be7 {[%emt 0:00:26]} 16. Rxe7 {[%emt 0:00:29]} Nxe7 {[%emt 0:00:26]} 17. Bxb4 {[%emt 0:00:27]} a6 {[%emt 0:00:43]} 18. Ba4 {[%emt 0:00:28]} Rc8 {[%emt 0:01:12]} 19. Nc3 {[%emt 0:00:44]} Be4 {[%emt 0:01:07]} 20. Re1 {[%emt 0:00:38]} f5 {[%emt 0:01:10]} 21. Ne5 {[%emt 0:00:43]} f4 {[%emt 0:01:35]} 22. f3 {[%emt 0:00:45]} Bf5 {[%emt 0:00:30]} 23. Nxd5 {[%emt 0:00:41]} Kg7 {[%emt 0:00:34]} 24. Bxe7 {[%emt 0:00:35]} b5 {[%emt 0:00:29]} 25. Bf6+ {[%emt 0:00:40]} Kh6 {[%emt 0:00:26]} 26. Nf7+ {[%emt 0:00:38]} Kh5 {[%emt 0:00:26]} 27. Nxf4# {[%emt 0:00:30]} 1-0